[Event "Titled Tuesday Blitz April 26 Late 2022"]
[White "Vasquez Schroeder, Rodrigo"]
[Black "Salimova, Nurgyul"]
[WhiteFideId "3400042"]
[BlackFideId "2915138"]
[WhiteElo "2561"]
[BlackElo "2185"]
[Result "1/2-1/2"]
[Round "09"]
[TimeControl "180+1"]
[Date "2022.04.26"]
[WhiteClock "0:01:23"]
[BlackClock "0:00:06"]

1. e4 {[%clk 0:03:00]}  c6 {[%clk 0:02:59]} 2. d4 {[%clk 0:03:00]}  d5 {[%clk 0:02:55]} 3. exd5 {[%clk 0:03:01]}  cxd5 {[%clk 0:02:55]} 4. Bd3 {[%clk 0:03:01]}  Nf6 {[%clk 0:02:55]} 5. h3 {[%clk 0:03:01]}  Nc6 {[%clk 0:02:48]} 6. c3 {[%clk 0:03:01]}  e6 {[%clk 0:02:40]} 7. Nf3 {[%clk 0:03:01]}  Bd6 {[%clk 0:02:38]} 8. O-O {[%clk 0:03:01]}  O-O {[%clk 0:02:25]} 9. Re1 {[%clk 0:03:01]}  Qc7 {[%clk 0:02:24]} 10. Qe2 {[%clk 0:03:00]}  a6 {[%clk 0:02:01]} 11. Nbd2 {[%clk 0:02:55]}  b5 {[%clk 0:02:00]} 12. a3 {[%clk 0:02:54]}  Na5 {[%clk 0:01:52]} 13. Ne5 {[%clk 0:02:52]}  Bb7 {[%clk 0:01:41]} 14. Rb1 {[%clk 0:02:47]}  Nc4 {[%clk 0:01:39]} 15. Ndf3 {[%clk 0:02:33]}  Ne4 {[%clk 0:01:37]} 16. Nxc4 {[%clk 0:02:27]}  bxc4 {[%clk 0:01:36]} 17. Bxe4 {[%clk 0:02:17]}  dxe4 {[%clk 0:01:37]} 18. Nd2 {[%clk 0:02:17]}  Bd5 {[%clk 0:01:24]} 19. Nxe4 {[%clk 0:02:15]}  Rab8 {[%clk 0:01:13]} 20. Ra1 {[%clk 0:02:10]}  Rb3 {[%clk 0:01:08]} 21. Nd2 {[%clk 0:02:04]}  Rb7 {[%clk 0:01:07]} 22. Nf1 {[%clk 0:02:04]}  Bf4 {[%clk 0:00:55]} 23. Bxf4 {[%clk 0:02:02]}  Qxf4 {[%clk 0:00:56]} 24. Rad1 {[%clk 0:02:02]}  Rfb8 {[%clk 0:00:55]} 25. Rd2 {[%clk 0:02:02]}  Rb5 {[%clk 0:00:31]} 26. f3 {[%clk 0:02:01]}  h5 {[%clk 0:00:26]} 27. Qf2 {[%clk 0:02:00]}  h4 {[%clk 0:00:13]} 28. Ne3 {[%clk 0:01:58]}  a5 {[%clk 0:00:13]} 29. Rde2 {[%clk 0:01:55]}  a4 {[%clk 0:00:12]} 30. Nxd5 {[%clk 0:01:51]}  Rxd5 {[%clk 0:00:11]} 31. Re4 {[%clk 0:01:50]}  Qg3 {[%clk 0:00:10]} 32. R1e2 {[%clk 0:01:40]}  Rdb5 {[%clk 0:00:08]} 33. Rxh4 {[%clk 0:01:36]}  Qxf2+ {[%clk 0:00:08]} 34. Kxf2 {[%clk 0:01:36]}  Rxb2 {[%clk 0:00:09]} 35. Re4 {[%clk 0:01:28]}  Rxe2+ {[%clk 0:00:06]} 36. Rxe2 {[%clk 0:01:28]}  Rb3 {[%clk 0:00:07]} 37. Rc2 {[%clk 0:01:29]}  Rxa3 {[%clk 0:00:07]} 38. Ke3 {[%clk 0:01:29]}  Rb3 {[%clk 0:00:04]} 39. d5 {[%clk 0:01:29]}  exd5 {[%clk 0:00:04]} 40. Kd4 {[%clk 0:01:30]}  Rb5 {[%clk 0:00:04]} 41. Ra2 {[%clk 0:01:29]}  Ra5 {[%clk 0:00:05]} 42. Ra3 {[%clk 0:01:30]}  f6 {[%clk 0:00:04]} 43. g4 {[%clk 0:01:27]}  Kf7 {[%clk 0:00:04]} 44. h4 {[%clk 0:01:27]}  Ke6 {[%clk 0:00:04]} 45. h5 {[%clk 0:01:27]}  Kd6 {[%clk 0:00:04]} 46. f4 {[%clk 0:01:27]}  Ra8 {[%clk 0:00:03]} 47. Ke3 {[%clk 0:01:24]}  Re8+ {[%clk 0:00:03]} 48. Kf3 {[%clk 0:01:25]}  Ra8 {[%clk 0:00:03]} 49. g5 {[%clk 0:01:24]}  fxg5 {[%clk 0:00:03]} 50. fxg5 {[%clk 0:01:25]}  Ke5 {[%clk 0:00:03]} 51. Kg4 {[%clk 0:01:22]}  d4 {[%clk 0:00:04]} 52. cxd4+ {[%clk 0:01:22]}  Kxd4 {[%clk 0:00:05]} 53. Kf3 {[%clk 0:01:21]}  c3 {[%clk 0:00:05]} 54. Ke2 {[%clk 0:01:21]}  Kc4 {[%clk 0:00:05]} 55. Kd1 {[%clk 0:01:21]}  Kb4 {[%clk 0:00:05]} 56. Ra1 {[%clk 0:01:22]}  a3 {[%clk 0:00:06]} 57. Kc2 {[%clk 0:01:22]}  a2 {[%clk 0:00:06]} 58. h6 {[%clk 0:01:22]}  gxh6 {[%clk 0:00:06]} 59. gxh6 {[%clk 0:01:22]}  Rh8 {[%clk 0:00:05]} 60. Rxa2 {[%clk 0:01:20]}  Rxh6 {[%clk 0:00:05]} 61. Ra7 {[%clk 0:01:21]}  Rh2+ {[%clk 0:00:05]} 62. Kc1 {[%clk 0:01:21]}  Rh1+ {[%clk 0:00:04]} 63. Kc2 {[%clk 0:01:22]}  Rh2+ {[%clk 0:00:04]} 64. Kc1 {[%clk 0:01:22]}  Kb3 {[%clk 0:00:04]} 65. Rb7+ {[%clk 0:01:22]}  Kc4 {[%clk 0:00:05]} 66. Rc7+ {[%clk 0:01:22]}  Kd3 {[%clk 0:00:05]} 67. Rd7+ {[%clk 0:01:22]}  Kc4 {[%clk 0:00:05]} 68. Rc7+ {[%clk 0:01:22]}  Kb3 {[%clk 0:00:06]} 69. Rb7+ {[%clk 0:01:23]}  Kc4 {[%clk 0:00:06]} 70. Rc7+ {[%clk 0:01:23]} 1/2-1/2


[Site "https://www.chess.com"]

[Event "Titled Tuesday Blitz April 26 Late 2022"]
[White "Vlassov, Nikolai"]
[Black "Yuan, Qingyu"]
[WhiteFideId "4103360"]
[BlackFideId "8609772"]
[WhiteElo "2407"]
[BlackElo "2359"]
[Result "0-1"]
[Round "09"]
[TimeControl "180+1"]
[Date "2022.04.26"]
[WhiteClock "0:00:03"]
[BlackClock "0:00:17"]

1. e4 {[%clk 0:03:00]}  c6 {[%clk 0:03:00]} 2. d4 {[%clk 0:03:00]}  d5 {[%clk 0:03:00]} 3. e5 {[%clk 0:03:01]}  c5 {[%clk 0:03:01]} 4. dxc5 {[%clk 0:03:01]}  e6 {[%clk 0:03:01]} 5. Nf3 {[%clk 0:03:01]}  Bxc5 {[%clk 0:03:01]} 6. Bd3 {[%clk 0:03:01]}  f6 {[%clk 0:03:01]} 7. O-O {[%clk 0:02:59]}  Nc6 {[%clk 0:03:01]} 8. Bf4 {[%clk 0:02:56]}  g5 {[%clk 0:02:58]} 9. Bg3 {[%clk 0:02:48]}  f5 {[%clk 0:02:53]} 10. h4 {[%clk 0:02:37]}  f4 {[%clk 0:02:43]} 11. Bh2 {[%clk 0:02:37]}  g4 {[%clk 0:02:30]} 12. Ng5 {[%clk 0:02:37]}  g3 {[%clk 0:02:30]} 13. Qh5+ {[%clk 0:02:36]}  Kd7 {[%clk 0:02:30]} 14. Nxe6 {[%clk 0:01:53]}  gxh2+ {[%clk 0:01:54]} 15. Kxh2 {[%clk 0:01:50]}  Kxe6 {[%clk 0:01:50]} 16. Bf5+ {[%clk 0:01:42]}  Ke7 {[%clk 0:01:46]} 17. Qg5+ {[%clk 0:01:37]}  Kf8 {[%clk 0:01:46]} 18. Qxf4 {[%clk 0:01:36]}  Bxf5 {[%clk 0:01:40]} 19. Qxf5+ {[%clk 0:01:36]}  Ke8 {[%clk 0:01:37]} 20. Qh5+ {[%clk 0:01:33]}  Kd7 {[%clk 0:01:36]} 21. Nc3 {[%clk 0:01:30]}  Nge7 {[%clk 0:01:35]} 22. Rad1 {[%clk 0:01:28]}  Kc7 {[%clk 0:01:28]} 23. Qf7 {[%clk 0:01:22]}  Qg8 {[%clk 0:01:11]} 24. Nxd5+ {[%clk 0:01:20]}  Kb8 {[%clk 0:01:04]} 25. Qf3 {[%clk 0:00:52]}  Qe6 {[%clk 0:00:44]} 26. Nf4 {[%clk 0:00:41]}  Qf5 {[%clk 0:00:34]} 27. Nd3 {[%clk 0:00:33]}  Qxf3 {[%clk 0:00:32]} 28. gxf3 {[%clk 0:00:34]}  Bd4 {[%clk 0:00:32]} 29. f4 {[%clk 0:00:32]}  Nf5 {[%clk 0:00:30]} 30. c3 {[%clk 0:00:32]}  Bb6 {[%clk 0:00:30]} 31. Kh3 {[%clk 0:00:29]}  Kc7 {[%clk 0:00:30]} 32. b4 {[%clk 0:00:27]}  a6 {[%clk 0:00:29]} 33. Rg1 {[%clk 0:00:24]}  Rhg8 {[%clk 0:00:28]} 34. Rg5 {[%clk 0:00:24]}  Raf8 {[%clk 0:00:28]} 35. Rdg1 {[%clk 0:00:22]}  Nce7 {[%clk 0:00:26]} 36. c4 {[%clk 0:00:20]}  Bd4 {[%clk 0:00:25]} 37. a4 {[%clk 0:00:18]}  h6 {[%clk 0:00:25]} 38. Rxg8 {[%clk 0:00:15]}  Nxg8 {[%clk 0:00:25]} 39. c5 {[%clk 0:00:12]}  Nge7 {[%clk 0:00:25]} 40. b5 {[%clk 0:00:12]}  axb5 {[%clk 0:00:24]} 41. axb5 {[%clk 0:00:12]}  Ra8 {[%clk 0:00:24]} 42. Rc1 {[%clk 0:00:07]}  Ra3 {[%clk 0:00:24]} 43. b6+ {[%clk 0:00:08]}  Kc6 {[%clk 0:00:24]} 44. Rd1 {[%clk 0:00:08]}  Bxc5 {[%clk 0:00:21]} 45. Kg4 {[%clk 0:00:09]}  Bxb6 {[%clk 0:00:20]} 46. Nb4+ {[%clk 0:00:07]}  Kb5 {[%clk 0:00:20]} 47. Rb1 {[%clk 0:00:06]}  Kc5 {[%clk 0:00:19]} 48. Kh5 {[%clk 0:00:03]}  Rc3 {[%clk 0:00:17]} 0-1


[Site "https://www.chess.com"]

[Event "Titled Tuesday Blitz April 26 Late 2022"]
[White "Vovk, Orest"]
[Black "Bas Mas, Jose Joaquin"]
[WhiteFideId "14113490"]
[BlackFideId "22219064"]
[WhiteElo "2203"]
[BlackElo "2212"]
[Result "1-0"]
[Round "09"]
[TimeControl "180+1"]
[Date "2022.04.26"]
[WhiteClock "0:00:15"]
[BlackClock "0:00:07"]

1. h4 {[%clk 0:02:57]}  h5 {[%clk 0:02:59]} 2. Nf3 {[%clk 0:02:57]}  Nf6 {[%clk 0:02:58]} 3. Ng5 {[%clk 0:02:57]}  d5 {[%clk 0:02:56]} 4. e4 {[%clk 0:02:58]}  dxe4 {[%clk 0:02:56]} 5. Nc3 {[%clk 0:02:58]}  Bf5 {[%clk 0:02:50]} 6. Bc4 {[%clk 0:02:58]}  e6 {[%clk 0:02:50]} 7. Qe2 {[%clk 0:02:57]}  Qd4 {[%clk 0:02:31]} 8. b3 {[%clk 0:02:09]}  a6 {[%clk 0:02:16]} 9. Bb2 {[%clk 0:02:08]}  Bc5 {[%clk 0:02:01]} 10. Na4 {[%clk 0:01:58]}  Qxf2+ {[%clk 0:01:50]} 11. Qxf2 {[%clk 0:01:56]}  Bxf2+ {[%clk 0:01:51]} 12. Kxf2 {[%clk 0:01:56]}  b5 {[%clk 0:01:51]} 13. Nc5 {[%clk 0:01:49]}  bxc4 {[%clk 0:01:48]} 14. bxc4 {[%clk 0:01:50]}  Nbd7 {[%clk 0:01:44]} 15. Bxf6 {[%clk 0:01:48]}  gxf6 {[%clk 0:01:34]} 16. Ngxe4 {[%clk 0:01:47]}  Nxc5 {[%clk 0:01:32]} 17. Nxc5 {[%clk 0:01:47]}  Bxc2 {[%clk 0:01:32]} 18. d3 {[%clk 0:01:47]}  Rd8 {[%clk 0:01:06]} 19. Ke2 {[%clk 0:01:38]}  Rg8 {[%clk 0:01:04]} 20. Rhg1 {[%clk 0:01:37]}  Rg3 {[%clk 0:00:58]} 21. Kf2 {[%clk 0:01:33]}  Rg4 {[%clk 0:00:58]} 22. Nxa6 {[%clk 0:01:19]}  Rxd3 {[%clk 0:00:43]} 23. Nxc7+ {[%clk 0:01:16]}  Ke7 {[%clk 0:00:34]} 24. c5 {[%clk 0:01:15]}  Ba4 {[%clk 0:00:31]} 25. Rac1 {[%clk 0:01:10]}  Rd2+ {[%clk 0:00:29]} 26. Ke3 {[%clk 0:01:10]}  Rxa2 {[%clk 0:00:26]} 27. c6 {[%clk 0:00:58]}  Ra3+ {[%clk 0:00:23]} 28. Kd2 {[%clk 0:00:56]}  Rd4+ {[%clk 0:00:22]} 29. Ke1 {[%clk 0:00:56]}  Re4+ {[%clk 0:00:20]} 30. Kf2 {[%clk 0:00:55]}  Rf4+ {[%clk 0:00:20]} 31. Ke1 {[%clk 0:00:54]}  Re4+ {[%clk 0:00:17]} 32. Kd2 {[%clk 0:00:55]}  Rd4+ {[%clk 0:00:10]} 33. Ke2 {[%clk 0:00:55]}  Rd6 {[%clk 0:00:10]} 34. g4 {[%clk 0:00:39]}  hxg4 {[%clk 0:00:07]} 35. Rxg4 {[%clk 0:00:40]}  Bxc6 {[%clk 0:00:07]} 36. h5 {[%clk 0:00:36]}  Bd7 {[%clk 0:00:05]} 37. Rh4 {[%clk 0:00:34]}  Rb6 {[%clk 0:00:02]} 38. Rc2 {[%clk 0:00:32]}  Rb8 {[%clk 0:00:02]} 39. h6 {[%clk 0:00:32]}  Rh8 {[%clk 0:00:02]} 40. h7 {[%clk 0:00:32]}  Ra7 {[%clk 0:00:02]} 41. Kf2 {[%clk 0:00:26]}  Ra5 {[%clk 0:00:02]} 42. Rcc4 {[%clk 0:00:18]}  Rf5+ {[%clk 0:00:03]} 43. Ke3 {[%clk 0:00:18]}  Rg5 {[%clk 0:00:03]} 44. Rce4 {[%clk 0:00:16]}  Rg7 {[%clk 0:00:03]} 45. Nd5+ {[%clk 0:00:16]}  Kd6 {[%clk 0:00:04]} 46. Nxf6 {[%clk 0:00:16]}  Bc8 {[%clk 0:00:04]} 47. Reg4 {[%clk 0:00:15]}  Rxg4 {[%clk 0:00:04]} 48. Rxg4 {[%clk 0:00:15]}  Ke7 {[%clk 0:00:04]} 49. Rg8 {[%clk 0:00:15]}  Kxf6 {[%clk 0:00:05]} 50. Rxh8 {[%clk 0:00:15]}  Kg7 {[%clk 0:00:06]} 51. Rxc8 {[%clk 0:00:15]}  Kxh7 {[%clk 0:00:06]} 52. Kf4 {[%clk 0:00:15]}  Kg6 {[%clk 0:00:07]} 53. Rg8+ {[%clk 0:00:15]}  Kf6 {[%clk 0:00:07]} 54. Rg5 {[%clk 0:00:15]}  e5+ {[%clk 0:00:07]} 55. Rxe5 {[%clk 0:00:15]}  Kg7 {[%clk 0:00:07]} 56. Kf5 {[%clk 0:00:15]} 1-0


[Site "https://www.chess.com"]

[Event "Titled Tuesday Blitz April 26 Late 2022"]
[White "Xiong, Jeffery"]
[Black "Chigaev, Maksim"]
[WhiteFideId "2047640"]
[BlackFideId "4108116"]
[WhiteElo "2727"]
[BlackElo "2478"]
[Result "1-0"]
[Round "09"]
[TimeControl "180+1"]
[Date "2022.04.26"]
[WhiteClock "0:00:23"]
[BlackClock "0:00:01"]

1. d4 {[%clk 0:03:00]}  Nf6 {[%clk 0:02:59]} 2. Bg5 {[%clk 0:03:01]}  g6 {[%clk 0:02:58]} 3. Bxf6 {[%clk 0:02:56]}  exf6 {[%clk 0:02:58]} 4. e3 {[%clk 0:02:57]}  d5 {[%clk 0:02:59]} 5. c4 {[%clk 0:02:51]}  dxc4 {[%clk 0:03:00]} 6. Bxc4 {[%clk 0:02:52]}  Bd6 {[%clk 0:02:55]} 7. Nc3 {[%clk 0:02:49]}  Nd7 {[%clk 0:02:52]} 8. h4 {[%clk 0:02:41]}  h5 {[%clk 0:02:51]} 9. Nf3 {[%clk 0:02:41]}  Nb6 {[%clk 0:02:49]} 10. Bb3 {[%clk 0:02:34]}  c6 {[%clk 0:02:49]} 11. Ne4 {[%clk 0:02:24]}  Bb4+ {[%clk 0:02:44]} 12. Kf1 {[%clk 0:02:24]}  O-O {[%clk 0:02:34]} 13. a3 {[%clk 0:02:23]}  Be7 {[%clk 0:02:34]} 14. g3 {[%clk 0:02:14]}  Kg7 {[%clk 0:02:33]} 15. Kg2 {[%clk 0:02:14]}  Bf5 {[%clk 0:02:23]} 16. Ned2 {[%clk 0:02:13]}  Qd7 {[%clk 0:02:18]} 17. Rc1 {[%clk 0:02:11]}  Rad8 {[%clk 0:02:18]} 18. Re1 {[%clk 0:02:01]}  Rfe8 {[%clk 0:01:55]} 19. e4 {[%clk 0:02:01]}  Bg4 {[%clk 0:01:54]} 20. Qc2 {[%clk 0:02:02]}  Bd6 {[%clk 0:01:50]} 21. Qc3 {[%clk 0:01:52]}  Bc7 {[%clk 0:01:19]} 22. a4 {[%clk 0:01:52]}  a6 {[%clk 0:01:08]} 23. a5 {[%clk 0:01:52]}  Nc8 {[%clk 0:01:06]} 24. e5 {[%clk 0:01:49]}  fxe5 {[%clk 0:00:58]} 25. dxe5 {[%clk 0:01:50]}  Qd3 {[%clk 0:00:53]} 26. Qb4 {[%clk 0:01:48]}  Bxa5 {[%clk 0:00:32]} 27. Qxa5 {[%clk 0:01:48]}  Bxf3+ {[%clk 0:00:32]} 28. Nxf3 {[%clk 0:01:49]}  Qxb3 {[%clk 0:00:32]} 29. e6 {[%clk 0:01:50]}  Qd5 {[%clk 0:00:22]} 30. Qc3+ {[%clk 0:01:49]}  f6 {[%clk 0:00:22]} 31. Rcd1 {[%clk 0:01:40]}  Qxd1 {[%clk 0:00:22]} 32. Rxd1 {[%clk 0:01:40]}  Rxd1 {[%clk 0:00:22]} 33. Qb3 {[%clk 0:01:41]}  Rd6 {[%clk 0:00:13]} 34. Qxb7+ {[%clk 0:01:39]}  Ne7 {[%clk 0:00:14]} 35. Qc7 {[%clk 0:01:30]}  Rxe6 {[%clk 0:00:13]} 36. Qd7 {[%clk 0:01:31]}  Kf7 {[%clk 0:00:13]} 37. Nd4 {[%clk 0:01:30]}  Re5 {[%clk 0:00:12]} 38. Nxc6 {[%clk 0:01:26]}  Rd5 {[%clk 0:00:10]} 39. Qc7 {[%clk 0:01:27]}  a5 {[%clk 0:00:02]} 40. Nxa5 {[%clk 0:01:23]}  Rc8 {[%clk 0:00:02]} 41. Qb6 {[%clk 0:01:21]}  Rc2 {[%clk 0:00:02]} 42. Nb7 {[%clk 0:01:17]}  Rdd2 {[%clk 0:00:02]} 43. Nd6+ {[%clk 0:01:17]}  Kg7 {[%clk 0:00:02]} 44. Ne4 {[%clk 0:01:17]}  Nd5 {[%clk 0:00:01]} 45. Qb5 {[%clk 0:00:43]}  Rd4 {[%clk 0:00:01]} 46. Qd7+ {[%clk 0:00:23]}  Kh6 {[%clk 0:00:01]} 47. Qe8 {[%clk 0:00:24]}  Ne3+ {[%clk 0:00:01]} 48. Kf3 {[%clk 0:00:23]}  Rxe4 {[%clk 0:00:01]} 1-0


[Site "https://www.chess.com"]

[Event "Titled Tuesday Blitz April 26 Late 2022"]
[White "Yanayt, Eugene"]
[Black "Skliarov, Viktor"]
[WhiteFideId "2020165"]
[BlackFideId "14106736"]
[WhiteElo "2046"]
[BlackElo "2229"]
[Result "0-1"]
[Round "09"]
[TimeControl "180+1"]
[Date "2022.04.26"]
[WhiteClock "0:00:03"]
[BlackClock "0:00:10"]

1. d4 {[%clk 0:03:00]}  Nf6 {[%clk 0:02:59]} 2. c4 {[%clk 0:02:58]}  e6 {[%clk 0:02:59]} 3. g3 {[%clk 0:02:58]}  c5 {[%clk 0:02:59]} 4. d5 {[%clk 0:02:57]}  exd5 {[%clk 0:02:59]} 5. cxd5 {[%clk 0:02:57]}  d6 {[%clk 0:03:00]} 6. e4 {[%clk 0:02:57]}  g6 {[%clk 0:02:59]} 7. f3 {[%clk 0:02:57]}  Bg7 {[%clk 0:02:57]} 8. Kf2 {[%clk 0:02:57]}  O-O {[%clk 0:02:54]} 9. Kg2 {[%clk 0:02:57]}  Nbd7 {[%clk 0:02:43]} 10. Nh3 {[%clk 0:02:52]}  Ne5 {[%clk 0:02:39]} 11. Nf2 {[%clk 0:02:52]}  Nh5 {[%clk 0:02:33]} 12. f4 {[%clk 0:02:40]}  Nd7 {[%clk 0:02:32]} 13. Be2 {[%clk 0:02:34]}  Nhf6 {[%clk 0:02:25]} 14. a4 {[%clk 0:02:21]}  Re8 {[%clk 0:02:15]} 15. Bf3 {[%clk 0:02:20]}  c4 {[%clk 0:02:12]} 16. Nd2 {[%clk 0:01:51]}  Nc5 {[%clk 0:02:11]} 17. Qc2 {[%clk 0:01:51]}  h5 {[%clk 0:01:27]} 18. h3 {[%clk 0:01:42]}  b6 {[%clk 0:01:15]} 19. Nxc4 {[%clk 0:01:31]}  Ba6 {[%clk 0:01:09]} 20. b4 {[%clk 0:01:24]}  Ncxe4 {[%clk 0:00:48]} 21. b5 {[%clk 0:01:15]}  Bb7 {[%clk 0:00:42]} 22. Bb2 {[%clk 0:01:13]}  Nxf2 {[%clk 0:00:36]} 23. Qxf2 {[%clk 0:01:08]}  Rc8 {[%clk 0:00:28]} 24. Ne3 {[%clk 0:01:04]}  Ne4 {[%clk 0:00:27]} 25. Qe2 {[%clk 0:00:56]}  Nc3 {[%clk 0:00:26]} 26. Qd2 {[%clk 0:00:53]}  h4 {[%clk 0:00:24]} 27. g4 {[%clk 0:00:49]}  Qf6 {[%clk 0:00:24]} 28. f5 {[%clk 0:00:45]}  Qg5 {[%clk 0:00:20]} 29. Rhe1 {[%clk 0:00:40]}  Be5 {[%clk 0:00:20]} 30. Nf1 {[%clk 0:00:36]}  Qxd2+ {[%clk 0:00:19]} 31. Nxd2 {[%clk 0:00:35]}  gxf5 {[%clk 0:00:18]} 32. gxf5 {[%clk 0:00:35]}  Nxd5 {[%clk 0:00:18]} 33. Bxe5 {[%clk 0:00:31]}  dxe5 {[%clk 0:00:19]} 34. Rac1 {[%clk 0:00:22]}  Nf4+ {[%clk 0:00:18]} 35. Kh2 {[%clk 0:00:23]}  Bxf3 {[%clk 0:00:16]} 36. Nxf3 {[%clk 0:00:22]}  f6 {[%clk 0:00:17]} 37. Nxh4 {[%clk 0:00:21]}  Kf7 {[%clk 0:00:17]} 38. Red1 {[%clk 0:00:17]}  Rxc1 {[%clk 0:00:13]} 39. Rxc1 {[%clk 0:00:17]}  e4 {[%clk 0:00:13]} 40. Rc7+ {[%clk 0:00:13]}  Re7 {[%clk 0:00:13]} 41. Rc4 {[%clk 0:00:13]}  Nd5 {[%clk 0:00:10]} 42. Kg2 {[%clk 0:00:11]}  e3 {[%clk 0:00:10]} 43. Kf1 {[%clk 0:00:10]}  e2+ {[%clk 0:00:10]} 44. Ke1 {[%clk 0:00:10]}  Ne3 {[%clk 0:00:10]} 45. Rc3 {[%clk 0:00:06]}  Nd5 {[%clk 0:00:07]} 46. Rc4 {[%clk 0:00:05]}  Re3 {[%clk 0:00:07]} 47. Ng2 {[%clk 0:00:04]}  Rxh3 {[%clk 0:00:06]} 48. Kxe2 {[%clk 0:00:04]}  Rh2 {[%clk 0:00:07]} 49. Kf3 {[%clk 0:00:04]}  Rxg2 {[%clk 0:00:07]} 50. Rd4 {[%clk 0:00:04]}  Ra2 {[%clk 0:00:06]} 51. Rxd5 {[%clk 0:00:04]}  Rxa4 {[%clk 0:00:07]} 52. Rd7+ {[%clk 0:00:04]}  Kg8 {[%clk 0:00:07]} 53. Rd6 {[%clk 0:00:05]}  Kg7 {[%clk 0:00:07]} 54. Rd7+ {[%clk 0:00:05]}  Kh6 {[%clk 0:00:08]} 55. Rd8 {[%clk 0:00:04]}  Kg5 {[%clk 0:00:08]} 56. Rd5 {[%clk 0:00:04]}  Rb4 {[%clk 0:00:08]} 57. Ke3 {[%clk 0:00:05]}  Kg4 {[%clk 0:00:07]} 58. Kd3 {[%clk 0:00:04]}  Kf4 {[%clk 0:00:06]} 59. Kc3 {[%clk 0:00:04]}  Ra4 {[%clk 0:00:06]} 60. Kb3 {[%clk 0:00:04]}  Ra5 {[%clk 0:00:06]} 61. Kb4 {[%clk 0:00:04]}  Ke4 {[%clk 0:00:07]} 62. Rd7 {[%clk 0:00:02]}  Ke5 {[%clk 0:00:07]} 63. Rc7 {[%clk 0:00:02]}  Kxf5 {[%clk 0:00:08]} 64. Rc6 {[%clk 0:00:02]}  Kg5 {[%clk 0:00:08]} 65. Rd6 {[%clk 0:00:03]}  f5 {[%clk 0:00:08]} 66. Rd5 {[%clk 0:00:03]}  Kg4 {[%clk 0:00:09]} 67. Rd3 {[%clk 0:00:03]}  f4 {[%clk 0:00:09]} 68. Ra3 {[%clk 0:00:03]}  Rxa3 {[%clk 0:00:09]} 69. Kxa3 {[%clk 0:00:03]}  f3 {[%clk 0:00:10]} 0-1


[Site "https://www.chess.com"]

[Event "Titled Tuesday Blitz April 26 Late 2022"]
[White "Aigner, Michael"]
[Black "Song, Guannan Terry"]
[WhiteFideId "2017288"]
[BlackFideId "2614189"]
[WhiteElo "2388"]
[BlackElo "2115"]
[Result "0-1"]
[Round "10"]
[TimeControl "180+1"]
[Date "2022.04.26"]
[WhiteClock "0:00:17"]
[BlackClock "0:00:57"]

1. e4 {[%clk 0:03:00]}  c5 {[%clk 0:02:59]} 2. Nc3 {[%clk 0:03:00]}  a6 {[%clk 0:02:58]} 3. g3 {[%clk 0:03:01]}  b5 {[%clk 0:02:58]} 4. Bg2 {[%clk 0:03:01]}  Bb7 {[%clk 0:02:56]} 5. d3 {[%clk 0:03:01]}  e6 {[%clk 0:02:55]} 6. f4 {[%clk 0:03:01]}  d5 {[%clk 0:02:53]} 7. exd5 {[%clk 0:02:56]}  exd5 {[%clk 0:02:54]} 8. d4 {[%clk 0:02:56]}  Nf6 {[%clk 0:02:52]} 9. Nf3 {[%clk 0:02:53]}  b4 {[%clk 0:02:51]} 10. Ne2 {[%clk 0:02:51]}  Nc6 {[%clk 0:02:48]} 11. O-O {[%clk 0:02:51]}  c4 {[%clk 0:02:44]} 12. Ne5 {[%clk 0:02:45]}  Be7 {[%clk 0:02:43]} 13. Be3 {[%clk 0:02:34]}  O-O {[%clk 0:02:35]} 14. h3 {[%clk 0:02:33]}  Re8 {[%clk 0:02:31]} 15. g4 {[%clk 0:02:33]}  a5 {[%clk 0:02:29]} 16. Ng3 {[%clk 0:02:31]}  Bf8 {[%clk 0:02:21]} 17. Bf2 {[%clk 0:02:21]}  Nxe5 {[%clk 0:02:14]} 18. dxe5 {[%clk 0:02:13]}  Ne4 {[%clk 0:02:15]} 19. Nxe4 {[%clk 0:02:12]}  dxe4 {[%clk 0:02:15]} 20. Qe2 {[%clk 0:02:07]}  Qc7 {[%clk 0:02:03]} 21. Bxe4 {[%clk 0:01:56]}  Bxe4 {[%clk 0:02:00]} 22. Qxe4 {[%clk 0:01:57]}  Bc5 {[%clk 0:02:00]} 23. Rad1 {[%clk 0:01:52]}  Rad8 {[%clk 0:01:49]} 24. Rd5 {[%clk 0:01:43]}  Bxf2+ {[%clk 0:01:46]} 25. Rxf2 {[%clk 0:01:40]}  c3 {[%clk 0:01:40]} 26. b3 {[%clk 0:01:36]}  Qb6 {[%clk 0:01:34]} 27. Kg2 {[%clk 0:01:33]}  Rxd5 {[%clk 0:01:31]} 28. Qxd5 {[%clk 0:01:33]}  Rd8 {[%clk 0:01:31]} 29. Qe4 {[%clk 0:01:28]}  h6 {[%clk 0:01:26]} 30. f5 {[%clk 0:01:26]}  Rd2 {[%clk 0:01:19]} 31. Qf3 {[%clk 0:01:08]}  Qd4 {[%clk 0:01:15]} 32. e6 {[%clk 0:01:02]}  fxe6 {[%clk 0:01:10]} 33. fxe6 {[%clk 0:01:03]}  Rxf2+ {[%clk 0:01:10]} 34. Qxf2 {[%clk 0:01:03]}  Qd5+ {[%clk 0:01:11]} 35. Kg3 {[%clk 0:01:00]}  Qxe6 {[%clk 0:01:11]} 36. Qc5 {[%clk 0:00:51]}  Qe1+ {[%clk 0:01:10]} 37. Kf3 {[%clk 0:00:47]}  Qd1+ {[%clk 0:01:09]} 38. Kg3 {[%clk 0:00:43]}  Qxc2 {[%clk 0:01:07]} 39. Qxa5 {[%clk 0:00:42]}  Qd3+ {[%clk 0:01:06]} 40. Kh4 {[%clk 0:00:38]}  c2 {[%clk 0:01:06]} 41. Qc7 {[%clk 0:00:30]}  Kh7 {[%clk 0:01:02]} 42. Qc8 {[%clk 0:00:17]}  c1=B {[%clk 0:00:57]} 0-1


[Site "https://www.chess.com"]